Cogmind - Beta 15 @@@ ROGUE MODE // 2025.09.06 @ 13:44:40 Player: shapeshifter Result: Destroyed by 6F-YH1(R) with Subdweller Shrapnel Launcher Performance ------------- Evolutions (0) 0 Regions Visited (2) 400 Robots Destroyed (17) 85 Value Destroyed (381) 381 Prototype IDs (11) 220 Alien Tech Used (0) 0 Bonus (-14) -14 TOTAL SCORE: 1072 Bonus ------- Friendly Fire -14 Cogmind --------- Core Integrity 0/250 Matter 300/300 Energy 198/200 System Corruption 0% Temperature Cool (0) Movement Rolling (110) Location -10/Subcaves Parts ------- > --- POWER (1) -------- Subdweller Power Source > --- PROPULSION (2) --- Subdweller Monowheel Subdweller Monowheel > --- UTILITY (2) ------ Medium Storage Unit Subdweller Optics > --- WEAPON (2) ------- Subdweller Beam Cannon Subdweller Beam Cannon > --- INVENTORY (10) --- Subdweller Power Source Subdweller Monowheel Subdweller Monowheel Gun Armor Scrap Shield Subdweller Machine Gun Subdweller Machine Gun Makeshift Shrapnel Gun Peak State ------------ > --- POWER ------------ Subdweller Power Source > --- PROPULSION ------- Subdweller Monowheel Subdweller Monowheel > --- UTILITY ---------- Medium Storage Unit Subdweller Optics > --- WEAPON ----------- Riot Gun Subdweller Beam Cannon > --- INVENTORY -------- Subdweller Power Source Subdweller Monowheel Subdweller Monowheel Gun Armor Scrap Shield Subdweller Beam Cannon Subdweller Machine Gun Subdweller Machine Gun Makeshift Shrapnel Gun [Rating: 16] Favorites ----------- Power Subdweller Power Source Engine Subdweller Power Source Propulsion Light Treads Treads Light Treads Wheel Subdweller Monowheel Utility Medium Storage Unit Device Seismic Detector Storage Medium Storage Unit Weapon Subdweller Machine Gun Energy Gun Riot Gun Energy Cannon Subdweller Beam Cannon Ballistic Gun Subdweller Machine Gun Build | -11 -10 -10 ------- Run | Yrd Mat Sub Slots Evolved . | . . . Power . | . . . Propulsion . | . . . Utility . | . . . Weapon . | . . . Parts Attached 25 | 7 1 17 Power 5 | 1 . 4 Engine 5 | 1 . 4 Core . | . . . Reactor . | . . . Propulsion 8 | 2 . 6 Treads 2 | 2 . . Leg . | . . . Wheel 6 | . . 6 Hover . | . . . Flight . | . . . Utility 4 | 2 1 1 Device 2 | 1 . 1 Storage 2 | 1 1 . Processor . | . . . Hackware . | . . . Protection . | . . . Artifact . | . . . Weapon 8 | 2 . 6 Energy Gun 1 | . . 1 Energy Cannon 2 | . . 2 Ballistic Gun 5 | 2 . 3 Ballistic Cannon . | . . . Launcher . | . . . Special Weapon . | . . . Impact Weapon . | . . . Slashing Weapon . | . . . Piercing Weapon . | . . . Special Melee Weapon . | . . . Unidentified Prototypes . | . . . Parts Lost 4 | . . 4 Power . | . . . Propulsion 2 | . . 2 Utility 1 | . . 1 Weapon 1 | . . 1 Highest Loss Streak 2 | . . 2 To Critical Strikes . | . . . Average Backups 7 | 3 4 8 Power 1 | . 1 1 Propulsion 2 | 1 2 2 Utility 2 | . . 2 Weapon 2 | . 1 2 Tool/Special . | . . . Unused Backups 5 | . . 5 Power 1 | . . 1 Propulsion . | . . . Utility 2 | . . 2 Weapon 2 | . . 2 Tool/Special . | . . . Average Slot Usage (%) 99 | . 100 99 Engine 14 | . 14 14 Treads 14 | . 28 12 Wheel 13 | . . 14 Device 14 | . 14 14 Storage 14 | . 14 14 Energy Cannon 1 | . . 1 Ballistic Gun 25 | . 28 25 Peak Build Rating 16 | 7 7 16 Average Rating 11 | 5 7 12 On Entrance 4 | . 7 7 Naked Turns . | . . . Heaviest Build 33 | 14 19 33 Greatest Support 40 | 40 40 40 Greatest Overweight (x) 2 | . . 2 Average Overweight (x) . | . . . Largest Inventory Capacity 10 | 8 10 10 Average Capacity 9 | 7 9 10 Most Carried 10 | 5 5 10 Average Carried 8 | 3 4 9 Final Capacity 10 | 8 10 10 Final Carried 9 | 4 4 9 Class Distribution -------------------- 72% | Mutant 27% | Scavenger-Mutant Dominant Class ---------------- Mutant | -10/Materials Mutant | -10/Subcaves Resources | -11 -10 -10 ----------- Run | Yrd Mat Sub Matter Collected 628 | 232 . 396 Remotely . | . . . Salvage Created 471 | 67 . 404 Parts 37 | 7 . 30 Haulers Intercepted . | . . . Recyclers Shooed 1 | 1 . . Parts Field Recycled . | . . . Retrieved Matter . | . . . Parts Self-Destructed 24 | . . 24 Prevented . | . . . Kills | -11 -10 -10 ------- Run | Yrd Mat Sub Combat Hostiles Destroyed 12 | . . 12 Guns 11 | . . 11 Classes Destroyed 4 | 1 . 3 Tunneler 3 | 3 . . Turret 2 | . . 2 Swarmer 6 | . . 6 Subdweller 6 | . . 6 Best Kill Streak 4 | 2 . 4 Combat Bots Only 4 | . . 4 Max Kills in Single Turn 2 | 1 . 2 Gunslinging 1 | . . 1 Exploded . | . . . Melee . | . . . Uniques/NPCs Destroyed . | . . . Combat | -11 -10 -10 -------- Run | Yrd Mat Sub Hostile Shots Fired 111 | . . 111 Missed 57 | . . 57 Hits 54 | . . 54 Projectile 54 | . . 54 AOE 4 | . . 4 Damage Taken 919 | . . 919 Core 269 | . . 269 Absorbed by Shields . | . . . Core Remaining (%) 100 | 100 . . Volleys Fired 64 | 9 . 55 Largest 2 | 2 . 2 Hottest 160 | 40 . 160 Shots Fired 112 | 18 . 94 Gun 101 | 18 . 83 Cannon 11 | . . 11 Launcher . | . . . Special . | . . . Kinetic 99 | 18 . 81 Thermal 11 | . . 11 Explosive . | . . . Electromagnetic 2 | . . 2 Robot Hit Streak 10 | 5 . 10 Robot Miss Streak 5 | 1 . 5 Penetration Max . | . . . Secondary Targets 2 | . . 2 Max Gunslinging Chain 1 | . . 1 Shots Hit Robots 68 | 12 . 56 Core Hits 26 | 4 . 22 Critical Kills 1 | . . 1 Critical Parts Destroyed . | . . . Critical Strikes 1 | . . 1 Meltdown 1 | . . 1 Melee Attacks . | . . . Impact . | . . . Slashing . | . . . Piercing . | . . . Sneak Attacks . | . . . Combat Hostiles . | . . . Follow-up Attacks . | . . . Damage Inflicted 1118 | 113 . 1005 Guns 920 | 113 . 807 Cannons 198 | . . 198 Explosions . | . . . Melee . | . . . Ramming . | . . . Kinetic 899 | 113 . 786 Thermal 198 | . . 198 Explosive . | . . . Electromagnetic 21 | . . 21 Impact . | . . . Slashing . | . . . Piercing . | . . . Highest Corruption . | . . . Average Corruption . | . . . Corruption Purged . | . . . Corruption Blocked . | . . . Overload Shots . | . . . Overflow Damage 19 | . . 19 Projectiles 19 | . . 19 Explosions . | . . . Melee . | . . . Knockbacks . | . . . Impact . | . . . Kinetic . | . . . Secondary . | . . . Self-Inflicted Damage . | . . . Shots . | . . . Rammed . | . . . Targets Rammed . | . . . Kicked . | . . . Crushed . | . . . Highest Temperature 45 | . . 45 Average Temperature 15 | . . 15 Received Heat Transfer 117 | . . 117 Siege Activations . | . . . Martial Activations . | . . . Shielding Activations . | . . . Robots Disrupted . | . . . Combat Hostiles . | . . . Robots Corrupted . | . . . Combat Hostiles . | . . . Parts Fried . | . . . Impact Corruptions . | . . . Robots Melted 1 | . . 1 Combat Hostiles 1 | . . 1 Parts Melted . | . . . Heat Transferred 259 | . . 259 Parts Sabotaged . | . . . Parts Stolen . | . . . Parts Stripped . | . . . Power Chain Reactions . | . . . Alert | -11 -10 -10 ------- Run | Yrd Mat Sub Maximum Alert Level . | . . . Low Security (%) 100 | 100 100 . Level 1 . | . . . Level 2 . | . . . Level 3 . | . . . Level 4 . | . . . Level 5 . | . . . High Security . | . . . Max Security . | . . . Peak Influence 10 | 10 . . Initial . | . . . Average . | 1 . . Influence Increases 285 | 15 . 270 Destroy 0b10 Robot/C 160 | . . 160 Destroy 0b10 Robot/NC 15 | 15 . . Destroy Leader 20 | . . 20 Lose Combat Pursuer 90 | . . 90 Influence Decreases 197 | 15 . 182 Time Decay 167 | 15 . 152 Lost Part 30 | . . 30 Squads Dispatched . | . . . Investigation . | . . . Extermination . | . . . Reinforcement . | . . . Assault . | . . . Garrison . | . . . Intercept . | . . . Searches Triggered . | . . . Construction Impeded . | . . . Haulers Reinforced . | . . . Active Scanning Responses . | . . . Cargo Convoy Interrupts . | . . . Stealth | -11 -10 -10 --------- Run | Yrd Mat Sub Distress Signals . | . . . Communications Jammed . | . . . Distress Signals . | . . . Times Spotted 20 | . . 20 Peak Tracking Total 4 | . . 4 Tactical Retreats 3 | . . 3 Traps | -11 -10 -10 ------- Run | Yrd Mat Sub Traps Triggered 2 | . . 2 Indirectly . | . . . Trap Hack Attempts . | . . . Triggered . | . . . Disarmed . | . . . Reprogrammed . | . . . Reused . | . . . Traps Extracted . | . . . Installed . | . . . Triggered . | . . . Machines | -11 -10 -10 ---------- Run | Yrd Mat Sub Machines Disabled 1 | . . 1 Max in Single Turn 1 | . . 1 Machines Repaired . | . . . Machines Dismantled . | . . . Machines Sabotaged . | . . . Overloaded Fab Kills . | . . . Hacking | -11 -10 -10 --------- Run | Yrd Mat Sub Machines Accessed 2 | . 1 1 Terminals . | . . . Fabricators . | . . . Repair Stations . | . . . Recycling Units 1 | . 1 . Scanalyzers . | . . . Garrison Access . | . . . Total Hacks 2 | . 1 1 Successful 2 | . 1 1 Failed . | . . . Catastrophic . | . . . Database Lockouts . | . . . Manual . | . . . Terminals . | . . . Fabricators . | . . . Repair Stations . | . . . Recycling Units 1 | . 1 . Scanalyzers . | . . . Garrison Access . | . . . Terminal Hacks 1 | . . 1 Proto ID Catalog 1 | . . 1 Fabricator Hacks . | . . . Repair Station Hacks . | . . . Recycling Unit Hacks 1 | . 1 . Retrieve Components 1 | . 1 . Scanalyzer . | . . . Garrison Access Hacks . | . . . Unauthorized Hacks . | . . . Terminals . | . . . Fabricators . | . . . Repair Stations . | . . . Recycling Units . | . . . Scanalyzers . | . . . Garrison Access . | . . . Data Cores Recovered . | . . . Used . | . . . Hacking Detections 1 | . 1 . Full Trace Events . | . . . Feedback Events . | . . . Feedback Blocked . | . . . Robot Schematics Acquired . | . . . Robots Built . | . . . Authchips . | . . . Time . | . . . Total Robot Build Rating . | . . . Part Schematics Acquired . | . . . Parts Built . | . . . Authchips . | . . . Time . | . . . Total Part Build Rating . | . . . Parts Repaired . | . . . Time . | . . . Parts Recycled . | . . . Recycled Matter . | . . . Retrieved Matter . | . . . Retrieved Components 3 | . 3 . Parts Scanalyzed . | . . . Part Schematics Acquired . | . . . Parts Damaged . | . . . Bothacking | -11 -10 -10 ------------ Run | Yrd Mat Sub Used RIF Installer . | . . . Robots Hacked . | . . . Non-combat . | . . . Combat . | . . . Robot Hacks Applied . | . . . Relay Couplers Released . | . . . Fabnet Peak Effective % . | . . . Robots Rewired . | . . . Allies Hacked . | . . . Hacks Repelled . | . . . Allies | -11 -10 -10 -------- Run | Yrd Mat Sub Total Allies . | . . . Largest Group . | . . . Highest-Rated Group . | . . . Highest-Rated Ally . | . . . Total Orders . | . . . Ally Attacks . | . . . Total Damage . | . . . Kills . | . . . Allies Corrupted . | . . . Allies Melted . | . . . Intel | -11 -10 -10 ------- Run | Yrd Mat Sub Active Infowar (turns) 1580 | 14 117 1449 Optics 217 | . . 217 Seismic 1363 | 14 117 1232 Robot Analysis Total . | . . . Derelict Logs Recovered 1 | . . 1 Drone Launches . | . . . Drone Recoveries . | . . . Exploration | -11 -10 -10 ------------- Run | Yrd Mat Sub Turns Passed 1694 | 126 117 1451 Spaces Moved 1162 | 65 72 1025 Core 18 | 18 . . Treads 472 | 47 72 353 Legs . | . . . Wheels 672 | . . 672 Hover . | . . . Flight . | . . . Fastest Speed 50 | 50 160 95 Average Speed 124 | 129 160 122 Slowest Speed 160 | 160 160 160 Overloaded Moves . | . . . Propulsion Burnouts . | . . . Robots Hopped . | . . . Potential Cave-ins . | . . . Cave-ins Triggered . | . . . Exploration Rate (%) 26 | 5 18 57 Regions Visited 2 Branch Regions 1 Pre-discovered Areas 1 | . . 1 Known Exits Taken . | . . . Unknown Exits Taken 2 | 1 1 . Scrap Searched 3 | . . 3 Spaces Dug . | . . . Terrain Destroyed 2 | . . 2 Melee . | . . . Projectile 2 | . . 2 AOE . | . . . Terrain Rammed . | . . . Walls Destroyed . | . . . Machines Disabled . | . . . Actions | -11 -10 -10 --------- Run | Yrd Mat Sub Total 1296 | 91 74 1131 Wait 7 | . . 7 Move 1160 | 64 71 1025 Hop . | . . . Pick Up 27 | 11 1 15 Fast Attach 4 | . . 4 Attach 10 | 7 . 3 Detach . | . . . Swap 11 | . 1 10 Drop 13 | . 1 12 Fire 64 | 9 . 55 Melee . | . . . Ram . | . . . Kick . | . . . Crush . | . . . Escape Stasis . | . . . Rewire . | . . . Trap . | . . . Miscellaneous . | . . . Route ------- -11/Scrapyard -10/Materials -10/Subcaves (discovered 2 exits: [*Mat] / *Rec) History --------- Turn | Location | Event 5 | -11/Scrapyard | Discovered new exit (range 14) 127 | -11/Scrapyard | Entered Materials 236 | -10/Materials | Discovered new exit (range 7) 244 | -10/Materials | Entered Subcaves 245 | -10/Subcaves | Approached by a straggling Scientist 256 | -10/Subcaves | Learned location of Zion (-7) 256 | -10/Subcaves | Met a Zionite searching for "candidates" 303 | -10/Subcaves | Build established: Mutant 541 | -10/Subcaves | Visited 4L-MR0's lab 555 | -10/Subcaves | Found Gun Armor 636 | -10/Subcaves | A swath of the cavern ceiling suddenly collapsed 1002 | -10/Subcaves | Shifting Twisted Machinery released Sub. Beam Cannon 1082 | -10/Subcaves | Discovered new exit (range 15) 1088 | -10/Subcaves | Shifting Twisted Machinery released Shrapnel Trap 1111 | -10/Subcaves | Identified exit to Recycling 1181 | -10/Subcaves | Build established: Scavenger-Mutant 1273 | -10/Subcaves | Shifting Twisted Machinery released Mak. Laser 1518 | -10/Subcaves | Build established: Mutant 1646 | -10/Subcaves | Core integrity fell below 50% 1666 | -10/Subcaves | Ambushed by Subdweller buried in earth 1675 | -10/Subcaves | Core integrity fell below 20% 1695 | -10/Subcaves | Destroyed by 6F-YH1(R) with Subdweller Shrapnel Launcher Last Messages --------------- 01556_ Subatomizers dissect the Sub. Optics. 01560_ Sub. Machine Gun shoots sparks and powers down. 01561_ Autobeam fries itself beyond repair. 01565_ Acquired Sub. Monowheel. 01571_ Acquired 15 matter. 01574_ Wheel destroyed. 01582_ Destroyed Autobeam. 01582_ Autobeam Turret destroyed. 01596_ Sub. Power Source shoots sparks and powers down. 01597_ Acquired 15 matter. 01601_ Acquired Sub. Monowheel. 01663_ W4-R3W(R) suffers critical hit (Meltdown). 01664_ Riot Gun destroyed. 01667_ ID-SV5(R): "ARGHSUB!" 01671_ 6F-YH1(R) affixes Scrap Shield Fragment to Scrap Shield. 01689_ Acquired 22 matter. Map ----- +----------------------------------------------------+ | # " * ##???????????????????# ????? | | ##### # "& "#????????????????????## ## ????# | | ???# ## #"" ""#?????????????????????##?#?????# | | ???## ## ##"""##????????????????????????????? | | ?#### # #######????????????????????????????# | | ## #??????????????????????????????????# | | ## #?????????????????????????????????# ## | | ### ##?????????????????????????????????# ?? | | #"" ##? #?????????????????????????????????#??? | | # " #?? #???????????????????????????????????? | | " ##?# #?###??????????????????????????????? | | """ #?###? ## ##?????????????????????????????? | | ## ##???? #?????????????????????????????? | | ?# ##??? ????????????????????????????? | | ?## #?? #?# #?????????????????????????? | | ?# # ## #?## #??#????????????????????? ? | | ### # #??? ## ????????????????????# #?? | | # # # ##??? ?????????????????????####???? | | #####???# #?????????????????????????????? | | % ### ##### #?????????????????????????????? | | ## % ##?########????????????????????? | | #?# *=# # #?#" """#????????????????????? | | ??# !%! # #?# "#????????????????????? | | # ### &% ### % "#????????????????????? | | # !&R * ""##???????????????????? | | # [&" # # !%! @ >#???????????????????? | | ## ## #### R ""##???????????????????? | | ?####### #?# ### % "#????????????????????? | | ?????## ###### #?# "#????????????????????? | | ?????# """# ##?#" %"""#????????????????????? | | ?????# " " ###########????????????????????? | | ?????#### #####????????????????????????? | | ????????#" """"###???###????????????????? | | ????????# " " ##??# ##???????????????? | | ????????## "### #???????????????? | | ????????? ## & #????????????????? | | ????????##?# [%* ###??????????????? | | ???????????# """" """"" #??????????????? | | ???????????###### ##### ##??????????????? | | ????????????????#####???# #???????????????? | | ????????????????????????# #???????????????? | | ???????????????????????# ## #???????????????? | | ???????????????????????# ### #???????????????? | | ??????????????????????# #?# ??????????????? | | ?????????????????????# #?# ## ?????????????? | | ?????????????????????# #?# #??#????????????? | | ?????????????????????#"" ##?## ##???????????????? | | ?????????????????????#"" ????####????????????????? | | ?????????????????????""" ????????????????????????? | | ????????????????????##"" ????????????????????????? | +----------------------------------------------------+ Best States ------------- Heat Dissipation 25 Energy Generation 15 Energy Capacity 250 Matter Stores 300 Matter Capacity 300 Sight Range 21 Terrain Scan Density 10 Evasion (%) 50 Recoil Reduction 2 Item Schematics ----------------- None Robot Schematics ------------------ None Fabricated ------------ Nothing Repaired ---------- Nothing Alien Tech Used ----------------- None Achievements -------------- None Challenges ------------ None Game ------ Seed JammingHeartWeb Manual? 0 Play Time 00:10:15 Cumulative 263.5 hours Start 2025.09.06 @ 12:16:06 End 2025.09.06 @ 13:44:40 Sessions 3 Manual Loads 0 Difficulty Rogue Special Mode None Game No. 386 Rogue 386 Adventurer 0 Explorer 0 Win Type - Total 5 Types 4/0/1/0/0/0/0/0/0/0 Lore% 83 Gallery% 79 Achievement% 61 Wizard Run 0 Options --------- Layout 1 ASCII 0 Keyboard 0 Movement Mouse Keybinds 0 Fullscreen 1 Font 24/Smallcaps Map View 50x40 Zoom Use 0% Tactical HUD 1 Map Filters NONE Filters NONE Steam 1 RUN: 20b5dfcf-c6d3-47be-b22b-af0dcd1e989c